Cogmind - Beta 16.1 @@@ ROGUE MODE // 2026.02.17 @ 19:35:35 Player: winnking222 Result: Destroyed by D-53 Grenadier with Mini Grenade Launcher Performance ------------- Evolutions (0) 0 Regions Visited (4) 800 Robots Destroyed (33) 165 Value Destroyed (708) 708 Prototype IDs (0) 0 Alien Tech Used (0) 0 Bonus (0) 0 TOTAL SCORE: 1673 Bonus ------- None Cogmind --------- Core Integrity 0/250 Matter 144/300 Energy 265/265 System Corruption 0% Temperature Cool (18) Movement Treading (320) Ox2 Location -9/Mines Parts ------- > --- POWER (1) -------- Improved Ion Engine > --- PROPULSION (2) --- Light Treads Light Treads > --- UTILITY (2) ------ Huge Storage Unit > --- WEAPON (2) ------- Improved Light Cannon Improved Light Cannon > --- INVENTORY (25) --- Improved Ion Engine Improved Ion Engine Reinforced Deuterium Engine Fission Core Light Fission Core Light Treads Compact Wheel Small Storage Unit High-capacity Storage Unit Huge Storage Unit Seismic Detector Seismic Detector Light Armor Plating Assault Rifle Assault Rifle Assault Rifle Assault Rifle Heavy Assault Rifle Heavy Assault Rifle Heavy Assault Rifle Improved Light Cannon Rocket Launcher Peak State ------------ > --- POWER ------------ Improved Ion Engine > --- PROPULSION ------- Light Treads Light Treads > --- UTILITY ---------- Huge Storage Unit Seismic Detector > --- WEAPON ----------- Improved Light Cannon Improved Light Cannon > --- INVENTORY -------- Improved Ion Engine Improved Ion Engine Reinforced Deuterium Engine Fission Core Light Fission Core Light Treads Light Treads Light Treads Compact Wheel Small Storage Unit Huge Storage Unit Seismic Detector Light Armor Plating Light Armor Plating Assault Rifle Assault Rifle Assault Rifle Assault Rifle Heavy Assault Rifle Heavy Assault Rifle Heavy Assault Rifle Improved Light Cannon Improved Light Cannon Grenade Launcher Rocket Launcher [Rating: 14] Favorites ----------- Power Improved Ion Engine Engine Improved Ion Engine Propulsion Light Treads Treads Light Treads Utility Seismic Detector Device Seismic Detector Storage Huge Storage Unit Protection Light Armor Plating Weapon Improved Light Cannon Ballistic Gun Assault Rifle Ballistic Cannon Improved Light Cannon Launcher Rocket Launcher Build | -11 -10 -10 -10 -9 ------- Run | Yrd Mat Min Exi Min Slots Evolved . | . . . . . Power . | . . . . . Propulsion . | . . . . . Utility . | . . . . . Weapon . | . . . . . Parts Attached 21 | 7 9 . . 5 Power 3 | 1 2 . . . Engine 3 | 1 2 . . . Core . | . . . . . Reactor . | . . . . . Propulsion 5 | 2 1 . . 2 Treads 5 | 2 1 . . 2 Leg . | . . . . . Wheel . | . . . . . Hover . | . . . . . Flight . | . . . . . Utility 4 | 2 1 . . 1 Device 1 | 1 . . . . Storage 2 | 1 1 . . . Processor . | . . . . . Hackware . | . . . . . Protection 1 | . . . . 1 Artifact . | . . . . . Weapon 9 | 2 5 . . 2 Energy Gun . | . . . . . Energy Cannon . | . . . . . Ballistic Gun 5 | 2 3 . . . Ballistic Cannon 3 | . 2 . . 1 Launcher 1 | . . . . 1 Special Weapon . | . . . . . Impact Weapon . | . . . . . Slashing Weapon . | . . . . . Piercing Weapon . | . . . . . Special Melee Weapon . | . . . . . Unidentified Prototypes . | . . . . . Parts Lost 4 | . . . . 4 Power . | . . . . . Propulsion 2 | . . . . 2 Utility 1 | . . . . 1 Weapon 1 | . . . . 1 Highest Loss Streak 4 | . . . . 4 To Critical Strikes . | . . . . . Average Backups 18 | 5 13 23 24 24 Power 2 | . . 2 4 5 Propulsion 3 | 3 3 5 4 3 Utility 3 | . 2 5 5 6 Weapon 8 | . 7 10 10 9 Tool/Special . | . . . . . Unused Backups 28 | . 6 1 3 18 Power 6 | . 1 . . 5 Propulsion 6 | . 3 . 1 2 Utility 5 | . . . 1 4 Weapon 11 | . 2 1 1 7 Tool/Special . | . . . . . Average Slot Usage (%) 99 | . 99 100 100 97 Engine 14 | . 14 14 14 14 Treads 27 | . 27 28 28 28 Device 13 | . 14 14 14 9 Storage 14 | . 14 14 14 14 Ballistic Gun 9 | . 19 . . . Ballistic Cannon 18 | . 8 28 28 25 Peak Build Rating 14 | 7 12 13 14 14 Average Rating 11 | 5 10 12 13 13 On Entrance 9 | . 7 12 13 14 Avg Prop Armor Cover (%) . | . . . . . Naked Turns . | . . . . . Heaviest Build 96 | 14 96 96 96 96 Greatest Support 40 | 40 40 40 40 40 Greatest Overweight (x) 2 | . 2 2 2 2 Average Overweight (x) 1 | . 1 2 2 2 Largest Inventory Capacity 25 | 8 25 25 25 25 Average Capacity 22 | 7 21 25 25 25 Most Carried 25 | 7 24 25 25 25 Average Carried 18 | 5 13 23 24 24 Final Capacity 25 | 8 25 25 25 25 Final Carried 25 | 7 22 25 25 22 Class Distribution -------------------- 100% | Mutant Dominant Class ---------------- Mutant | -10/Materials Mutant | -10/Mines Mutant | -10/Exiles Mutant | -9/Mines Resources | -11 -10 -10 -10 -9 ----------- Run | Yrd Mat Min Exi Min Matter Collected 960 | 334 613 13 . . Remotely . | . . . . . Salvage Created 934 | 198 660 . . 76 Parts 73 | 19 50 . . 4 Haulers Intercepted 2 | . 2 . . . Recyclers Shooed . | . . . . . Parts Field Recycled . | . . . . . Retrieved Matter . | . . . . . Parts Self-Destructed . | . . . . . Prevented . | . . . . . Parts Restored . | . . . . . Kills | -11 -10 -10 -10 -9 ------- Run | Yrd Mat Min Exi Min Combat Hostiles Destroyed 31 | . 19 . . 12 Guns 13 | . 13 . . . Cannons 7 | . 6 . . 1 AOE 11 | . . . . 11 Classes Destroyed 9 | 3 4 . . 2 Worker 2 | 1 1 . . . Tunneler 6 | 5 1 . . . Hauler 2 | . 2 . . . Recycler 1 | 1 . . . . Watcher 2 | . 2 . . . Swarmer 5 | . 5 . . . Grunt 14 | . 14 . . . Demolisher 1 | . . . . 1 Assembled 11 | . . . . 11 Best Kill Streak 12 | 4 5 . . 12 Combat Bots Only 12 | . 3 . . 12 Max Kills in Single Turn 5 | 1 1 . . 5 Gunslinging . | . . . . . Exploded 5 | . . . . 5 Melee . | . . . . . Uniques/NPCs Destroyed . | . . . . . Combat | -11 -10 -10 -10 -9 -------- Run | Yrd Mat Min Exi Min Hostile Shots Fired 103 | . 82 . . 21 Missed 24 | . 22 . . 2 Hits 79 | . 60 . . 19 Projectile 79 | . 60 . . 19 AOE 13 | . . . . 13 Damage Taken 1307 | . 639 . . 668 Core 250 | . 117 . . 133 Absorbed by Shields . | . . . . . Core Remaining (%) 100 | 100 . . . . Volleys Fired 109 | 16 82 . . 11 Largest 2 | 2 2 . . 2 Hottest 66 | 40 66 . . 66 Shots Fired 212 | 32 164 . . 16 Gun 142 | 32 110 . . . Cannon 64 | . 54 . . 10 Launcher 6 | . . . . 6 Special . | . . . . . Kinetic 206 | 32 164 . . 10 Thermal . | . . . . . Explosive 6 | . . . . 6 Electromagnetic . | . . . . . Robot Hit Streak 10 | 4 10 . . 6 Robot Miss Streak 7 | 3 7 . . 2 Penetration Max . | . . . . . Secondary Targets 1 | . 1 . . . Max Gunslinging Chain 1 | . 1 . . . Shots Hit Robots 112 | 19 85 . . 8 Core Hits 74 | 10 35 . . 29 Critical Kills . | . . . . . Critical Parts Destroyed . | . . . . . Critical Strikes 3 | . 3 . . . Blast 3 | . 3 . . . Melee Attacks . | . . . . . Impact . | . . . . . Slashing . | . . . . . Piercing . | . . . . . Sneak Attacks . | . . . . . Combat Hostiles . | . . . . . Follow-up Attacks . | . . . . . Damage Inflicted 2311 | 216 1307 . . 788 Guns 942 | 216 726 . . . Cannons 703 | . 581 . . 122 Explosions 666 | . . . . 666 Melee . | . . . . . Ramming . | . . . . . Kinetic 1645 | 216 1307 . . 122 Thermal . | . . . . . Explosive 666 | . . . . 666 Electromagnetic . | . . . . . Impact . | . . . . . Slashing . | . . . . . Piercing . | . . . . . Highest Corruption . | . . . . . Average Corruption . | . . . . . Corruption Purged . | . . . . . Corruption Blocked . | . . . . . Overload Shots . | . . . . . Overflow Damage 2 | . 2 . . . Projectiles 2 | . 2 . . . Explosions . | . . . . . Melee . | . . . . . Knockbacks 14 | . 11 . . 3 Impact . | . . . . . Kinetic 12 | . 9 . . 3 Secondary 2 | . 2 . . . Self-Inflicted Damage 70 | . . . . 70 Shots 2 | . . . . 2 Rammed . | . . . . . Targets Rammed . | . . . . . Kicked . | . . . . . Crushed . | . . . . . Highest Temperature 132 | . 132 . . 18 Average Temperature 37 | . 41 . . 8 Received Heat Transfer 291 | . 291 . . . Siege Activations . | . . . . . Martial Activations . | . . . . . Shielding Activations . | . . . . . Robots Disrupted . | . . . . . Combat Hostiles . | . . . . . Robots Corrupted . | . . . . . Combat Hostiles . | . . . . . Parts Fried . | . . . . . Impact Corruptions . | . . . . . Robots Melted . | . . . . . Combat Hostiles . | . . . . . Parts Melted . | . . . . . Heat Transferred . | . . . . . Parts Sabotaged . | . . . . . Parts Stolen . | . . . . . Parts Stripped . | . . . . . Power Chain Reactions . | . . . . . Alert | -11 -10 -10 -10 -9 ------- Run | Yrd Mat Min Exi Min Maximum Alert Level . | . . . . . Low Security (%) 100 | 100 100 100 . 100 Level 1 . | . . . . . Level 2 . | . . . . . Level 3 . | . . . . . Level 4 . | . . . . . Level 5 . | . . . . . High Security . | . . . . . Max Security . | . . . . . Peak Influence 188 | 10 188 67 . 30 Initial 67 | . . 67 . . Average 30 | 1 45 4 . 11 Influence Increases 711 | 35 608 . . 68 Destroy 0b10 Robot/C 400 | . 380 . . 20 Destroy 0b10 Robot/NC 65 | 35 30 . . . Destroy Leader 88 | . 78 . . 10 Successful Hack 8 | . 8 . . . Disable Machine 45 | . 45 . . . Destroy Structure 45 | . 7 . . 38 Lose Combat Pursuer 60 | . 60 . . . Influence Decreases 681 | 35 434 174 . 38 Entered New Map 107 | . . 107 . . Time Decay 554 | 35 434 67 . 18 Lost Part 20 | . . . . 20 Squads Dispatched 5 | . 5 . . . Investigation 2 | . 2 . . . Extermination . | . . . . . Reinforcement 3 | . 3 . . . Assault . | . . . . . Garrison . | . . . . . Intercept . | . . . . . Searches Triggered . | . . . . . Construction Impeded . | . . . . . Haulers Reinforced . | . . . . . Active Scanning Responses . | . . . . . Cargo Convoy Interrupts . | . . . . . Stealth | -11 -10 -10 -10 -9 --------- Run | Yrd Mat Min Exi Min Distress Signals . | . . . . . Communications Jammed . | . . . . . Distress Signals . | . . . . . Times Spotted 54 | . 36 . . 18 Peak Tracking Total 15 | . 6 . . 15 Tactical Retreats 4 | . 4 . . . Traps | -11 -10 -10 -10 -9 ------- Run | Yrd Mat Min Exi Min Traps Triggered 3 | . 3 . . . Indirectly . | . . . . . Trap Hack Attempts . | . . . . . Triggered . | . . . . . Disarmed . | . . . . . Reprogrammed . | . . . . . Reused . | . . . . . Traps Extracted . | . . . . . Installed . | . . . . . Triggered . | . . . . . Machines | -11 -10 -10 -10 -9 ---------- Run | Yrd Mat Min Exi Min Machines Disabled 3 | . 3 . . . Max in Single Turn 1 | . 1 . . . Machines Repaired . | . . . . . Machines Dismantled . | . . . . . Machines Sabotaged . | . . . . . Overloaded Fab Kills . | . . . . . Hacking | -11 -10 -10 -10 -9 --------- Run | Yrd Mat Min Exi Min Machines Accessed 6 | . 5 . 1 . Terminals 5 | . 5 . . . Fabricators . | . . . . . Repair Stations . | . . . . . Recycling Units . | . . . . . Scanalyzers . | . . . . . Garrison Access . | . . . . . Total Hacks 13 | . 12 . 1 . Successful 7 | . 6 . 1 . Failed 6 | . 6 . . . Catastrophic . | . . . . . Database Lockouts . | . . . . . Manual 12 | . 12 . . . Terminals 12 | . 12 . . . Fabricators . | . . . . . Repair Stations . | . . . . . Recycling Units . | . . . . . Scanalyzers . | . . . . . Garrison Access . | . . . . . Terminal Hacks 1 | . . . 1 . Record 1 | . . . 1 . Fabricator Hacks . | . . . . . Repair Station Hacks . | . . . . . Recycling Unit Hacks . | . . . . . Scanalyzer . | . . . . . Garrison Access Hacks . | . . . . . Unauthorized Hacks 6 | . 6 . . . Terminals 6 | . 6 . . . Botnet 4 | . 4 . . . Skim 2 | . 2 . . . Fabricators . | . . . . . Repair Stations . | . . . . . Recycling Units . | . . . . . Scanalyzers . | . . . . . Garrison Access . | . . . . . Data Cores Recovered . | . . . . . Used . | . . . . . Hacking Detections 4 | . 4 . . . Full Trace Events 1 | . 1 . . . Feedback Events . | . . . . . Feedback Blocked . | . . . . . Robot Schematics Acquired . | . . . . . Robots Built . | . . . . . Authchips . | . . . . . Time . | . . . . . Total Robot Build Rating . | . . . . . Part Schematics Acquired . | . . . . . Parts Built . | . . . . . Authchips . | . . . . . Time . | . . . . . Total Part Build Rating . | . . . . . Part Studies Acquired . | . . . . . Parts Repaired . | . . . . . Time . | . . . . . Parts Recycled . | . . . . . Recycled Matter . | . . . . . Retrieved Matter . | . . . . . Retrieved Components . | . . . . . Parts Scanalyzed . | . . . . . Part Schematics Acquired . | . . . . . Parts Damaged . | . . . . . Bothacking | -11 -10 -10 -10 -9 ------------ Run | Yrd Mat Min Exi Min Used RIF Installer . | . . . . . Robots Hacked . | . . . . . Non-combat . | . . . . . Combat . | . . . . . Robot Hacks Applied . | . . . . . Relay Couplers Released . | . . . . . Fabnet Peak Effective % . | . . . . . Robots Rewired . | . . . . . Allies Hacked . | . . . . . Hacks Repelled . | . . . . . Allies | -11 -10 -10 -10 -9 -------- Run | Yrd Mat Min Exi Min Total Allies . | . . . . . Largest Group . | . . . . . Highest-Rated Group . | . . . . . Highest-Rated Ally . | . . . . . Total Orders . | . . . . . Ally Attacks . | . . . . . Total Damage . | . . . . . Kills . | . . . . . Allies Corrupted . | . . . . . Allies Melted . | . . . . . Intel | -11 -10 -10 -10 -9 ------- Run | Yrd Mat Min Exi Min Active Infowar (turns) 4716 | 58 2389 1093 1141 35 Seismic 4716 | 58 2389 1093 1141 35 Robot Analysis Total . | . . . . . Derelict Logs Recovered 1 | . . 1 . . Drone Launches . | . . . . . Drone Recoveries . | . . . . . Exploration | -11 -10 -10 -10 -9 ------------- Run | Yrd Mat Min Exi Min Turns Passed 4865 | 186 2393 1093 1141 52 Spaces Moved 1461 | 87 675 339 355 5 Core 16 | 16 . . . . Treads 1445 | 71 675 339 355 5 Legs . | . . . . . Wheels . | . . . . . Hover . | . . . . . Flight . | . . . . . Fastest Speed 50 | 50 160 320 320 320 Average Speed 289 | 139 278 320 320 320 Slowest Speed 320 | 160 320 320 320 320 Overloaded Moves . | . . . . . Propulsion Burnouts . | . . . . . Robots Hopped . | . . . . . Potential Cave-ins . | . . . . . Cave-ins Triggered . | . . . . . Exploration Rate (%) 55 | 5 97 88 78 11 Regions Visited 4 Branch Regions 3 Pre-discovered Areas . | . . . . . Known Exits Taken . | . . . . . Unknown Exits Taken 4 | 1 1 1 1 . Scrap Searched 1 | . . 1 . . Spaces Dug . | . . . . . Terrain Destroyed 49 | . 2 . . 47 Melee . | . . . . . Projectile 5 | . 2 . . 3 AOE 44 | . . . . 44 Terrain Rammed . | . . . . . Walls Destroyed . | . . . . . Machines Disabled . | . . . . . Actions | -11 -10 -10 -10 -9 --------- Run | Yrd Mat Min Exi Min Total 1894 | 123 1036 349 363 23 Wait 232 | . 225 6 . 1 Move 1457 | 86 674 338 354 5 Hop . | . . . . . Pick Up 52 | 14 30 4 4 . Fast Attach . | . . . . . Attach 14 | 7 4 . . 3 Detach . | . . . . . Swap 11 | . 7 . 1 3 Drop 19 | . 14 1 4 . Fire 109 | 16 82 . . 11 Melee . | . . . . . Ram . | . . . . . Kick . | . . . . . Crush . | . . . . . Escape Stasis . | . . . . . Rewire . | . . . . . Trap . | . . . . . Miscellaneous . | . . . . . Route ------- -11/Scrapyard -10/Materials (discovered 5 exits: [*Mat x3] / [*Min x2]) -10/Mines (discovered 4 exits: [*Mat x2] / *Exi / [*Sub]) -10/Exiles -9/Mines History --------- Turn | Location | Event 9 | -11/Scrapyard | Discovered new exit (range 16) 187 | -11/Scrapyard | Entered Materials 303 | -10/Materials | Build established: Mutant 397 | -10/Materials | Discovered new exit (range 4) 618 | -10/Materials | Discovered new exit (range 14) 926 | -10/Materials | Discovered new exit (range 3) 1020 | -10/Materials | Discovered new exit (range 16) 2334 | -10/Materials | Discovered new exit (range 8) 2580 | -10/Materials | Entered Mines 2632 | -10/Mines | Learned location of 1 exit from Materials 2717 | -10/Mines | Discovered new exit (range 7) 3008 | -10/Mines | Discovered new exit (range 15) 3043 | -10/Mines | Found DCF Scrap (12 items) 3066 | -10/Mines | Received a Rocket Launcher from a helpful Derelict 3391 | -10/Mines | Found a Scrap Suit stashed away for nefarious purposes 3429 | -10/Mines | Discovered new exit (range 15) 3660 | -10/Mines | Deemed a non-threat by the Exiles lab entrance 3660 | -10/Mines | Discovered new exit (range 5) 3673 | -10/Mines | Entered Exiles 3673 | -10/Exiles | Found Exiles lab abandoned 4785 | -10/Exiles | Discovered new exit (range 10) 4814 | -10/Exiles | Entered Mines 4815 | -9/Mines | Assembled infested the area 4820 | -9/Mines | Assisted by a Guerilla fighting off Assembled 4841 | -9/Mines | Core integrity fell below 50% 4863 | -9/Mines | Core integrity fell below 20% 4866 | -9/Mines | Destroyed by D-53 Grenadier with Mini Grenade Launcher Last Messages --------------- 04849_ U-05 Engineer lays Concrete. 04850_ Lgt. Treads destroyed. 04851_ The unstable cave ceiling collapses. 04852_ Lgt. Treads destroyed. 04856_ D-53 Grenadier knocked back. 04856_ Lgt. Armor Plating destroyed. 04857_ U-05 Engineer lays Concrete. 04858_ Imp. Light Cannon destroyed. 04859_ K-01 Serf collects debris. 04859_ U-05 Engineer lays Concrete. 04860_ The unstable cave ceiling collapses. 04860_ U-05 Engineer lays Concrete. 04860_ D-53 Grenadier knocked back. 04860_ D-53 Grenadier destroyed. 04861_ The unstable cave ceiling collapses. 04861_ K-01 Serf collects debris. 04862_ U-05 Engineer builds a Wall. 04863_ D-53 Grenadier knocked back. 04864_ K-01 Serf collects debris. 04866_ U-05 Engineer lays Concrete. Map ----- +----------------------------------------------------+ | ??????????????????????????????????????? | | ??????????????????????????????????????? | | ??????????????????????????????????????? | | ??????????????????????????????????????? | | ??????????????????????????????????????? | | ??????????????????????????????????????? | | ??????????????????????????????????????? | | ??????????????????????????????????????? | | ??????????????????????????????????????? | | ??????????????????????????????????????? | | ??????????????????????????????????????? | | ??????????????????????????????????????? | | ??????????????????????????????????????? | | ??????????????????????????????????????? | | ??????????????????????????????????????? | | ???????????????????????####???????????? | | ??????????????????????## ##??????????? | | ?????????????##???????# ##?????????? | | ????????????## ?????## ##?###????? | | ????????????# ??## ## ##???? | | ??????????## ?# #???? | | ?????????# # ## #??? | | ????????? ! % ##???????? | | ????????? *d= #???????? | | ??????????# % # ; #???????? | | ???????????# @ #???????? | | ?????????? #u #???????? | | ?????????? # #???????? | | ??????????? % ##???????? | | ??????????? # ##????????? | | ???????????? #?????????? | | ???????????? # # ### #?????????? | | ???????????? # ?# ??# ?????????? | | ?????????????###??# ???# ?????????? | | ?????????????????? ???? ## ????????? | | ?????????????????# ????? #?#????????? | | ????????????????? ?????$ #??????????? | | ???????????????? ?????? #??????????? | | ????????????????????????? ??????????? | | ????????????????????????? ???????????? | | ?????????????????????????k ???????????? | | ??????????????????????????????????????? | | ??????????????????????????????????????? | | ??????????????????????????????????????? | | ??????????????????????????????????????? | | ??????????????????????????????????????? | | ??????????????????????????????????????? | | ??????????????????????????????????????? | | ??????????????????????????????????????? | | ??????????????????????????????????????? | +----------------------------------------------------+ Best States ------------- Heat Dissipation 25 Energy Generation 12 Energy Capacity 265 Matter Stores 300 Matter Capacity 300 Sight Range 16 Terrain Scan Density 10 Armor Coverage 150 Evasion (%) 50 Recoil Reduction 2 Item Schematics ----------------- None Robot Schematics ------------------ None Fabricated ------------ Nothing Repaired ---------- Nothing Studied --------- None Alien Tech Used ----------------- None Achievements -------------- None Challenges ------------ None Game ------ Seed ParticleHeatFist Manual? 0 Play Time 00:14:03 Cumulative 238.0 hours Start 2026.02.17 @ 19:22:50 End 2026.02.17 @ 19:35:35 Sessions 1 Manual Loads 0 Difficulty Rogue Special Mode None Game No. 330 Rogue 330 Adventurer 0 Explorer 0 Win Type - Total 4 Types 2/0/0/1/0/0/0/0/0/1 Lore% 76 Gallery% 73 Achievement% 54 Wizard Run 0 Options --------- Layout 0 ASCII 0 Keyboard 0 Movement Mouse Keybinds 0 Fullscreen 1 Font 16/SmallcapsGlow Map View 75x55 Zoom Use 0% Tactical HUD 1 Map Filters NONE Filters NONE Steam 1 RUN: 28beed91-07ec-4a30-b625-d45e3262fb93